fUST/lending_fUST_20250115
["ID","MTS","AMOUNT","RATE_DAILY","PERIOD"]
[348949939,1736889039011,-2485.12,0.00022053,3]
[348949941,1736889039021,-2485.12,0.00022053,3]
[348949943,1736889039030,-2485.12,0.00022053,3]
[348949945,1736889039039,-2485.12,0.00022053,3]
[348949947,1736889039048,-2485.31,0.00022053,3]
[348949949,1736889039058,-525.14253089,0.00022053,3]
[348949951,1736889039070,-169.31746911,0.00022053,3]
[348949953,1736889039079,-230.50972952,0.00022053,3]
[348949956,1736889039090,-463.95027048,0.00022053,3]
[348949958,1736889039100,-694.46,0.00022053,3]
[348949960,1736889039110,-694.46,0.00022053,3]
[348949962,1736889039120,-694.58380213,0.00022053,3]
[348949964,1736889039129,-242.57269065,0.00022054,3]
[348950068,1736889040117,-257.42730935,0.00022054,3]
[348950070,1736889040130,-500.0,0.00022054,3]
[348950072,1736889040139,-500.0,0.00022054,3]
[348950074,1736889040149,-500.0,0.00022054,3]
[348950076,1736889040158,-500.0,0.00022054,3]
[348950078,1736889040167,-500.0,0.00022054,3]
[348950081,1736889040181,-538.28341079,0.00022054,3]
[348950083,1736889040190,-500.0,0.00022054,3]
[348950085,1736889040200,-503.47725766,0.00022054,3]
[348950087,1736889040209,-500.0,0.00022054,3]
[348950089,1736889040219,-500.0,0.00022054,3]
[348950091,1736889040228,-500.0,0.00022054,3]
[348950093,1736889040237,-500.0,0.00022054,3]
[348950095,1736889040247,-141.08637622,0.00022054,3]
[348950097,1736889040259,-358.91362378,0.00022054,3]
[348950099,1736889040268,-372.73860404,0.00022054,3]
[348950101,1736889040280,-127.26139596,0.00022054,3]
[348950103,1736889040289,-500.0,0.00022054,3]
[348950105,1736889040299,-123.55871541,0.00022054,3]
[348950107,1736889040311,-376.44128459,0.00022054,3]
[348950109,1736889040321,-0.82171537,0.00022054,3]
[348950112,1736889040332,-303.2774998,0.00022054,3]
[348950114,1736889040343,-195.90078483,0.00022054,3]
[348950116,1736889040353,-500.0,0.00022054,3]
[348950118,1736889040363,-500.0,0.00022054,3]
[348950120,1736889040374,-500.0,0.00022054,3]
[348950122,1736889040383,-500.0,0.00022054,3]
[348950124,1736889040392,-500.0,0.00022054,3]
[348950126,1736889040402,-523.63800539,0.00022054,3]
[348950128,1736889040412,-500.0,0.00022054,3]
[348950130,1736889040422,-500.0,0.00022054,3]
[348950132,1736889040431,-199.95566843,0.00022054,3]
[348950134,1736889040443,-300.04433157,0.00022054,3]
[348950136,1736889040452,-507.24823379,0.00022054,3]
[348950138,1736889040461,-500.0,0.00022054,3]
[348950140,1736889040471,-500.0,0.00022054,3]
[348950142,1736889040480,-500.0,0.00022054,3]
[348950144,1736889040489,-500.0,0.00022054,3]
[348950146,1736889040499,-500.0,0.00022054,3]
[348950148,1736889040507,-200.93472419,0.00022054,3]
[348950150,1736889040516,-500.0,0.00022054,3]
[348950152,1736889040525,-500.0,0.00022054,3]
[348950154,1736889040535,-386.24581853,0.00022054,3]
[348950156,1736889040546,-500.0,0.00022054,3]
[348950158,1736889040555,-500.0,0.00022054,3]
[348950160,1736889040565,-500.0,0.00022054,3]
[348950174,1736889040692,-500.0,0.00022054,3]
[348950176,1736889040702,-507.10719409,0.00022054,3]
[348950178,1736889040712,-635.55,0.00022054,3]
[348950180,1736889040722,-500.0,0.00022054,3]
[348950182,1736889040731,-500.0,0.00022054,3]
[348950184,1736889040741,-500.0,0.00022054,3]
[348950186,1736889040750,-564.08,0.00022054,3]
[348950188,1736889040760,-500.0,0.00022054,3]
[348950190,1736889040770,-500.0,0.00022054,3]
[348950192,1736889040779,-255.06913389,0.00022054,3]
[348950194,1736889040789,-500.0,0.00022054,3]
[348950196,1736889040798,-500.0,0.00022054,3]
[348950198,1736889040807,-500.0,0.00022054,3]
[348950200,1736889040816,-500.0,0.00022054,3]
[348950201,1736889040826,-500.0,0.00022054,3]
[348950203,1736889040836,-235.0,0.00022054,3]
[348950205,1736889040846,-500.0,0.00022054,3]
[348950207,1736889040856,-500.0,0.00022054,3]
[348950210,1736889040867,-500.0,0.00022054,3]
[348950211,1736889040877,-592.89,0.00022054,3]
[348950214,1736889040887,-500.0,0.00022054,3]
[348950215,1736889040896,-500.0,0.00022054,3]
[348950218,1736889040906,-4441.95,0.00022054,3]
[348950220,1736889040916,-500.0,0.00022054,3]
[348950221,1736889040927,-402.33746573,0.00022054,3]
[348950222,1736889040938,-500.0,0.00022054,3]
[348950223,1736889040948,-500.0,0.00022054,3]
[348950224,1736889040957,-500.0,0.00022054,3]
[348950225,1736889040967,-500.0,0.00022054,3]
[348950226,1736889040977,-500.0,0.00022054,3]
[348950227,1736889040987,-500.0,0.00022054,3]
[348950228,1736889040998,-627.58604872,0.00022054,3]
[348950229,1736889041007,-500.0,0.00022054,3]
[348950230,1736889041017,-500.0,0.00022054,3]
[348950231,1736889041027,-500.0,0.00022054,3]
[348950232,1736889041037,-500.0,0.00022054,3]
[348950233,1736889041047,-500.0,0.00022054,3]
[348950234,1736889041056,-500.0,0.00022054,3]
[348950235,1736889041067,-500.0,0.00022054,3]
[348950236,1736889041076,-500.0,0.00022054,3]
[348950237,1736889041085,-500.0,0.00022054,3]
[348950238,1736889041095,-500.0,0.00022054,3]
[348950239,1736889041104,-150.0,0.00022054,3]
[348950240,1736889041113,-500.0,0.00022054,3]
[348950241,1736889041123,-500.0,0.00022054,3]
[348950242,1736889041133,-500.0,0.00022054,3]
[348950243,1736889041143,-168.8707106,0.00022054,3]
[348950459,1736889043135,-331.1292894,0.00022054,3]
[348950461,1736889043146,-500.0,0.00022054,3]
[348950463,1736889043155,-500.0,0.00022054,3]
[348950465,1736889043164,-911.34101473,0.00022054,3]
[348950469,1736889043191,-1843.15898527,0.00022054,3]
[348950471,1736889043200,-500.0,0.00022054,3]
[348950473,1736889043209,-500.0,0.00022054,3]
[348950475,1736889043219,-500.0,0.00022054,3]
[348950477,1736889043228,-508.85,0.00022054,3]
[348950479,1736889043237,-500.0,0.00022054,3]
[348950481,1736889043247,-500.0,0.00022054,3]
[348950483,1736889043256,-585.57695845,0.00022054,3]
[348950485,1736889043265,-175.45302063,0.00022054,3]
[348950487,1736889043274,-500.0,0.00022054,3]
[348950489,1736889043283,-504.51873845,0.00022054,3]
[348950491,1736889043292,-500.0,0.00022054,3]
[348950493,1736889043301,-500.0,0.00022054,3]
[348950495,1736889043310,-500.0,0.00022054,3]
[348950497,1736889043319,-500.0,0.00022054,3]
[348950499,1736889043329,-500.0,0.00022054,3]
[348950501,1736889043338,-500.0,0.00022054,3]
[348950503,1736889043347,-1515.68,0.00022054,3]
[348950505,1736889043356,-500.0,0.00022054,3]
[348950507,1736889043365,-500.0,0.00022054,3]
[348950509,1736889043375,-738.56,0.00022054,2]
[348950511,1736889043385,-261.16923738,0.00022054,3]
[348950513,1736889043394,-500.0,0.00022054,3]
[348950515,1736889043403,-500.0,0.00022054,3]
[348950517,1736889043413,-500.0,0.00022054,3]
[348950519,1736889043422,-500.0,0.00022054,3]
[348950521,1736889043431,-500.0,0.00022054,3]
[348950523,1736889043441,-500.0,0.00022054,3]
[348950525,1736889043450,-500.0,0.00022054,3]
[348950527,1736889043459,-627.7,0.00022054,3]
[348950529,1736889043469,-1480.24889511,0.00022054,3]
[348952327,1736889804144,316.783404,0.00013973,2]
[348952342,1736890028137,-607.362628,0.00018807,2]
[348952343,1736890028159,-2808.39447968,0.00018808,2]
[348952344,1736890037130,-893.67347865,0.00018808,2]
[348952345,1736890039138,-1297.93204167,0.00018808,2]
[348952346,1736890039161,-332.26166172,0.000189,2]
[348952411,1736890232501,-915.71188452,0.000176,2]
[348952413,1736890232512,-300.0,0.000176,2]
[348952415,1736890232523,-2332.65194715,0.00018711,2]
[348952417,1736890232537,-200.51285705,0.00018898,2]
[348952420,1736890232550,-1306.92361197,0.000189,2]
[348952422,1736890232561,-300.0,0.00018992,2]
[348952424,1736890232574,-23898.0,0.00018992,2]
[348952426,1736890232586,-24900.0,0.00018998,2]
[348952428,1736890232596,-196.65861289,0.00019259,2]
[348952431,1736890232607,-150.0,0.00019532,2]
[348952433,1736890232618,-200.51285701,0.00019573,2]
[348952435,1736890232629,-204.22154542,0.000199,2]
[348952437,1736890232641,-392.519,0.00019997,2]
[348952440,1736890232652,-154.57,0.00019999,2]
[348952442,1736890232663,-153.48728419,0.00019999,2]
[348952444,1736890232674,-500.0,0.00019999,2]
[348952446,1736890232684,-500.0,0.00019999,2]
[348952448,1736890232695,-500.0,0.00019999,2]
[348952450,1736890232706,-500.0,0.00019999,2]
[348952453,1736890232718,-168.55635133,0.00019999,2]
[348952455,1736890232731,-500.0,0.00019999,2]
[348952457,1736890232744,-586.39413503,0.00019999,2]
[348952460,1736890232756,-206.51046175,0.00019999,2]
[348952462,1736890232768,-218.65986974,0.00019999,2]
[348952464,1736890232779,-82000.0,0.0002,4]
[348952466,1736890232791,-175.57692925,0.0002005,2]
[348952468,1736890232802,-204.22154537,0.0002015,2]
[348952469,1736890232813,-200.51285701,0.00020248,2]
[348952470,1736890232824,-204.22154537,0.000204,2]
[348952471,1736890232835,-316.783404,0.00020447,2]
[348952472,1736890232846,-204.22154537,0.0002065,2]
[348952473,1736890232857,-420.0,0.00020701,2]
[348952474,1736890232868,-204.22154537,0.000209,2]
[348952475,1736890232881,-200.51285701,0.00020923,2]
[348952476,1736890232892,-526.011,0.0002095,2]
[348952477,1736890232903,-204.22154537,0.0002115,2]
[348952478,1736890232915,-204.22154537,0.000214,2]
[348952479,1736890232926,-200.51285701,0.00021599,2]
[348952480,1736890232941,-204.22154537,0.0002165,2]
[348952481,1736890232954,-6972.13099915,0.00021739,2]
[348952482,1736890232965,-204.22154537,0.000219,2]
[348952483,1736890232977,-434.93999881,0.00021916,2]
[348952484,1736890232990,-500.0,0.00021917,3]
[348952485,1736890233001,-500.0,0.00021917,3]
[348952486,1736890233013,-498.26592187,0.00021917,3]
[348952487,1736890233026,-355.65125752,0.00021917,3]
[348952488,1736890233038,-498.93268323,0.00021917,3]
[348952489,1736890233049,-500.0,0.00021917,3]
[348952490,1736890233061,-500.0,0.00021917,3]
[348952491,1736890233073,-500.0,0.00021917,3]
[348952492,1736890233084,-500.0,0.00021917,3]
[348952493,1736890233096,-500.0,0.00021917,3]
[348952494,1736890233108,-500.43789982,0.00021917,3]
[348952495,1736890233120,-501.62436648,0.00021917,3]
[348952496,1736890233131,-507.93205456,0.00021917,3]
[348952497,1736890233143,-500.0,0.00021917,3]
[348952498,1736890233155,-500.0,0.00021917,3]
[348952499,1736890233167,-500.0,0.00021917,3]
[348952500,1736890233179,-500.0,0.00021917,3]
[348952501,1736890233193,-500.0,0.00021917,3]
[348952502,1736890233205,-500.0,0.00021917,3]
[348952503,1736890233217,-500.0,0.00021917,3]
[348952504,1736890233228,-500.0,0.00021917,3]
[348952505,1736890233240,-208.93,0.00021917,3]
[348952506,1736890233252,-500.0,0.00021917,3]
[348952507,1736890233264,-500.62136378,0.00021917,3]
[348952508,1736890233275,-500.0,0.00021917,3]
[348952509,1736890233287,-263.97341103,0.00021917,3]
[348952510,1736890233299,-500.0,0.00021917,3]
[348952511,1736890233311,-500.0,0.00021917,3]
[348952512,1736890233503,-500.0,0.00021917,3]
[348952513,1736890233518,-500.0,0.00021917,3]
[348952514,1736890233529,-500.0,0.00021917,3]
[348952515,1736890233540,-500.0,0.00021917,3]
[348952516,1736890233550,-501.47948541,0.00021917,3]
[348952517,1736890233560,-644.49107387,0.00021917,3]
[348952518,1736890233570,-500.0,0.00021917,3]
[348952519,1736890233580,-500.0,0.00021917,3]
[348952520,1736890233590,-500.0,0.00021917,3]
[348952521,1736890233600,-500.0,0.00021917,3]
[348952522,1736890233610,-500.0,0.00021917,3]
[348952523,1736890233619,-500.0,0.00021917,3]
[348952524,1736890233630,-500.0,0.00021917,3]
[348952525,1736890233641,-500.0,0.00021917,3]
[348952526,1736890233651,-500.0,0.00021917,3]
[348952527,1736890233661,-500.0,0.00021917,3]
[348952528,1736890233671,-500.0,0.00021917,3]
[348952529,1736890233681,-500.0,0.00021917,3]
[348952530,1736890233691,-178.50957707,0.00021917,3]
[348952531,1736890233700,-500.0,0.00021917,3]
[348952532,1736890233711,-500.0,0.00021917,3]
[348952533,1736890233721,-501.64933079,0.00021917,3]
[348952534,1736890233732,-500.0,0.00021917,3]
[348952535,1736890233742,-500.0,0.00021917,3]
[348952536,1736890233753,-500.0,0.00021917,3]
[348952537,1736890233763,-500.0,0.00021917,3]
[348952538,1736890233773,-603.42,0.00021917,3]
[348952539,1736890233783,-500.0,0.00021917,3]
[348952540,1736890233793,-500.0,0.00021917,3]
[348952541,1736890233802,-500.0,0.00021917,3]
[348952542,1736890233812,-500.0,0.00021917,3]
[348952543,1736890233822,-500.0,0.00021917,3]
[348952544,1736890233832,-500.0,0.00021917,3]
[348952545,1736890233841,-500.0,0.00021917,3]
[348952546,1736890233851,-510.13901952,0.00021917,3]
[348952547,1736890233861,-500.0,0.00021917,3]
[348952548,1736890233872,-537.91,0.00021917,3]
[348952549,1736890233882,-500.0,0.00021917,3]
[348952550,1736890233892,-500.0,0.00021917,3]
[348952551,1736890233901,-500.0,0.00021917,3]
[348952552,1736890233911,-500.0,0.00021917,3]
[348952553,1736890233921,-617.62,0.00021917,3]
[348952554,1736890233931,-500.0,0.00021917,3]
[348952555,1736890233942,-500.0,0.00021917,3]
[348952556,1736890233952,-151.0,0.00021917,2]
[348952557,1736890233962,-610.16362687,0.00021917,3]
[348952558,1736890233972,-500.0,0.00021917,3]
[348952559,1736890233983,-500.0,0.00021917,3]
[348952560,1736890233992,-503.88895537,0.00021917,3]
[348952561,1736890234002,-500.0,0.00021917,3]
[348952562,1736890234012,-500.0,0.00021917,3]
[348952563,1736890234022,-489.29237097,0.00021917,3]
[348952564,1736890234032,-500.0,0.00021917,3]
[348952565,1736890234041,-500.0,0.00021917,3]
[348952566,1736890234052,-564.32,0.00021917,3]
[348952567,1736890234062,-500.0,0.00021917,3]
[348952568,1736890234071,-500.0,0.00021917,3]
[348952569,1736890234081,-500.0,0.00021917,3]
[348952570,1736890234091,-646.2030332,0.00021917,3]
[348952571,1736890234101,-500.0,0.00021917,3]
[348952572,1736890234110,-500.0,0.00021917,3]
[348952573,1736890234120,-588.05123565,0.00021917,3]
[348952574,1736890234130,-500.0,0.00021917,3]
[348952575,1736890234139,-500.0,0.00021917,3]
[348952576,1736890234149,-500.0,0.00021917,3]
[348952577,1736890234158,-500.0,0.00021917,3]
[348952578,1736890234168,-500.0,0.00021917,3]
[348952579,1736890234178,-500.0,0.00021917,3]
[348952580,1736890234190,-500.0,0.00021917,3]
[348952581,1736890234199,-500.0,0.00021917,3]
[348952582,1736890234209,-4133.49,0.00021917,3]
[348952583,1736890234219,-4133.49,0.00021917,3]
[348952584,1736890234229,-500.0,0.00021917,3]
[348952585,1736890234239,-500.0,0.00021917,3]
[348952586,1736890234249,-500.0,0.00021917,3]
[348952587,1736890234259,-151.0,0.00021917,2]
[348952588,1736890234270,-500.0,0.00021917,3]
[348952589,1736890234279,-500.0,0.00021917,3]
[348952590,1736890234289,-500.0,0.00021917,3]
[348952591,1736890234299,-500.0,0.00021917,3]
[348952592,1736890234309,-500.0,0.00021917,3]
[348952593,1736890234318,-500.0,0.00021917,3]
[348952594,1736890234328,-151.0,0.00021917,2]
[348952595,1736890234337,-500.0,0.00021917,3]
[348952596,1736890234347,-500.0,0.00021917,3]
[348952597,1736890234357,-500.0,0.00021917,3]
[348952598,1736890234368,-500.0,0.00021917,3]
[348952599,1736890234378,-500.0,0.00021917,3]
[348952600,1736890234388,-500.0,0.00021917,3]
[348952601,1736890234398,-500.0,0.00021917,3]
[348952602,1736890234408,-500.0,0.00021917,3]
[348952603,1736890234418,-509.18939462,0.00021917,3]
[348952604,1736890234428,-500.0,0.00021917,3]
[348952605,1736890234439,-151.0,0.00021917,2]
[348952606,1736890234448,-500.0,0.00021917,3]
[348952607,1736890234458,-500.0,0.00021917,3]
[348952608,1736890234467,-509.93732249,0.00021917,3]
[348952609,1736890234478,-500.0,0.00021917,3]
[348952610,1736890234487,-500.0,0.00021917,3]
[348952611,1736890234497,-500.0,0.00021917,3]
[348952612,1736890234507,-500.0,0.00021917,3]
[348952613,1736890234516,-500.0,0.00021917,3]
[348952614,1736890234526,-500.0,0.00021917,3]
[348952615,1736890234535,-500.0,0.00021917,3]
[348952616,1736890234545,-500.0,0.00021917,3]
[348952617,1736890234555,-2451.06,0.00021917,3]
[348952618,1736890234564,-500.0,0.00021917,3]
[348952619,1736890234574,-500.0,0.00021917,3]
[348952620,1736890234583,-500.0,0.00021917,3]
[348952621,1736890234593,-151.0,0.00021917,2]
[348952622,1736890234603,-500.0,0.00021917,3]
[348952623,1736890234612,-500.0,0.00021917,3]
[348952624,1736890234621,-500.0,0.00021917,3]
[348952625,1736890234630,-151.0,0.00021917,2]
[348952626,1736890234640,-151.0,0.00021917,2]
[348952627,1736890234649,-500.0,0.00021917,3]
[348952628,1736890234659,-500.0,0.00021917,3]
[348952629,1736890234669,-500.0,0.00021917,3]
[348952630,1736890234678,-502.49615994,0.00021917,3]
[348952631,1736890234690,-500.0,0.00021917,3]
[348952632,1736890234699,-350.30459251,0.00021917,3]
[348952633,1736890234710,-151.0,0.00021917,2]
[348952634,1736890234720,-151.0,0.00021917,2]
[348952635,1736890234730,-500.0,0.00021917,3]
[348952636,1736890234739,-1392.61,0.00021917,3]
[348952637,1736890234749,-500.0,0.00021917,3]
[348952638,1736890234759,-500.0,0.00021917,3]
[348952639,1736890234770,-500.0,0.00021917,3]
[348952640,1736890234780,-500.0,0.00021917,3]
[348952641,1736890234789,-500.0,0.00021917,3]
[348952642,1736890234799,-500.0,0.00021917,3]
[348952643,1736890234809,-500.0,0.00021917,3]
[348952644,1736890234818,-500.0,0.00021917,3]
[348952645,1736890234829,-500.0,0.00021917,3]
[348952646,1736890234839,-151.0,0.00021917,2]
[348952647,1736890234850,-500.0,0.00021917,3]
[348952648,1736890234860,-500.0,0.00021917,3]
[348952649,1736890234870,-1252.5,0.00021917,3]
[348952650,1736890234879,-500.0,0.00021917,3]
[348952651,1736890234888,-677.01,0.00021917,2]
[348952652,1736890234898,-500.0,0.00021917,3]
[348952653,1736890234907,-151.0,0.00021917,2]
[348952654,1736890234916,-151.0,0.00021917,2]
[348952655,1736890234926,-500.0,0.00021917,3]
[348952656,1736890234940,-500.0,0.00021917,3]
[348952657,1736890234952,-500.0,0.00021917,3]
[348952658,1736890234961,-151.0,0.00021917,2]
[348952659,1736890234971,-244.296697,0.00021917,2]
[348952660,1736890234981,-151.0,0.00021917,2]
[348952661,1736890234990,-151.0,0.00021917,2]
[348952662,1736890235000,-523.48383294,0.00021917,3]
[348952663,1736890235010,-500.0,0.00021917,3]
[348952664,1736890235022,-151.0,0.00021917,2]
[348952665,1736890235032,-151.0,0.00021917,2]
[348952666,1736890235042,-500.0,0.00021917,3]
[348952667,1736890235051,-500.0,0.00021917,3]
[348952668,1736890235060,-500.0,0.00021917,3]
[348952669,1736890235070,-500.0,0.00021917,3]
[348952670,1736890235079,-500.0,0.00021917,3]
[348952671,1736890235089,-500.0,0.00021917,3]
[348952672,1736890235099,-500.0,0.00021917,3]
[348952673,1736890235108,-500.0,0.00021917,3]
[348952674,1736890235117,-500.0,0.00021917,3]
[348952675,1736890235129,-500.0,0.00021917,3]
[348952676,1736890235138,-16646.17,0.00021917,3]
[348952677,1736890235148,-500.0,0.00021917,3]
[348952678,1736890235157,-500.0,0.00021917,3]
[348952679,1736890235167,-500.0,0.00021917,3]
[348952680,1736890235176,-500.0,0.00021917,3]
[348952681,1736890235187,-500.0,0.00021917,3]
[348952682,1736890235197,-596.22,0.00021917,3]
[348952683,1736890235207,-500.0,0.00021917,3]
[348952684,1736890235218,-500.0,0.00021917,3]
[348952685,1736890235227,-500.0,0.00021917,3]
[348952686,1736890235237,-500.0,0.00021917,3]
[348952687,1736890235246,-500.0,0.00021917,3]
[348952688,1736890235256,-525.30503279,0.00021917,3]
[348952689,1736890235267,-503.19054478,0.00021917,3]
[348952690,1736890235277,-500.0,0.00021917,3]
[348952691,1736890235286,-943.83,0.00021917,3]
[348952692,1736890235296,-500.0,0.00021917,3]
[348952693,1736890235306,-500.0,0.00021917,3]
[348952694,1736890235316,-500.0,0.00021917,3]
[348952695,1736890235326,-1800.19,0.00021917,3]
[348952696,1736890235335,-500.0,0.00021917,3]
[348952697,1736890235346,-6175.24,0.00021917,2]
[348952698,1736890235355,-500.0,0.00021917,3]
[348952699,1736890235365,-437.11290476,0.00021917,3]
[348952700,1736890235375,-500.0,0.00021917,3]
[348952701,1736890235385,-500.0,0.00021917,3]
[348952702,1736890235394,-500.0,0.00021917,3]
[348952703,1736890235403,-965.58,0.00021917,3]
[348952704,1736890235412,-500.0,0.00021917,3]
[348952705,1736890235422,-500.0,0.00021917,3]
[348952706,1736890235432,-500.0,0.00021917,3]
[348952707,1736890235442,-561.36,0.00021917,3]
[348952708,1736890235451,-500.0,0.00021917,3]
[348952709,1736890235461,-1482.05,0.00021917,3]
[348952710,1736890235470,-500.0,0.00021917,3]
[348952711,1736890235480,-500.0,0.00021917,3]
[348952712,1736890235491,-794.94,0.00021917,3]
[348952713,1736890235501,-500.0,0.00021917,3]
[348952714,1736890235511,-500.0,0.00021917,3]
[348952715,1736890235520,-2295.3,0.00021917,3]
[348952716,1736890235530,-500.0,0.00021917,3]
[348952717,1736890235540,-500.0,0.00021917,3]
[348952718,1736890235549,-500.0,0.00021917,3]
[348952719,1736890235558,-500.0,0.00021917,3]
[348952720,1736890235568,-500.0,0.00021917,3]
[348952721,1736890235577,-503.0409126,0.00021917,3]
[348952722,1736890235587,-500.0,0.00021917,3]
[348952723,1736890235597,-500.0,0.00021917,3]
[348952724,1736890235606,-500.0,0.00021917,3]
[348952725,1736890235616,-500.0,0.00021917,3]
[348952726,1736890235625,-500.0,0.00021917,3]
[348952727,1736890235636,-500.0,0.00021917,3]
[348952728,1736890235645,-502.40030029,0.00021917,3]
[348952729,1736890235655,-500.0,0.00021917,3]
[348952730,1736890235666,-500.0,0.00021917,3]
[348952731,1736890235675,-500.0,0.00021917,3]
[348952732,1736890235685,-500.0,0.00021917,3]
[348952733,1736890235695,-500.0,0.00021917,3]
[348952734,1736890235705,-500.0,0.00021917,3]
[348952735,1736890235716,-856.24,0.00021917,3]
[348952736,1736890235726,-151.0,0.00021917,2]
[348952737,1736890235735,-500.0,0.00021917,3]
[348952738,1736890235745,-500.0,0.00021917,3]
[348952739,1736890235755,-500.0,0.00021917,3]
[348952740,1736890235766,-500.0,0.00021917,3]
[348952741,1736890235776,-500.0,0.00021917,3]
[348952742,1736890235785,-500.0,0.00021917,3]
[348952743,1736890235795,-500.0,0.00021917,3]
[348952744,1736890235805,-500.0,0.00021917,3]
[348952745,1736890235814,-500.0,0.00021917,3]
[348952746,1736890235824,-500.0,0.00021917,3]
[348952747,1736890235834,-500.0,0.00021917,3]
[348952748,1736890235844,-500.0,0.00021917,3]
[348952749,1736890235854,-196.45549596,0.00021917,3]
[348952750,1736890235863,-500.0,0.00021917,3]
[348952751,1736890235873,-500.0,0.00021917,3]
[348952752,1736890235883,-500.0,0.00021917,3]
[348952753,1736890235893,-500.0,0.00021917,3]
[348952754,1736890235904,-500.0,0.00021917,3]
[348952755,1736890235913,-500.0,0.00021917,3]
[348952756,1736890235924,-500.0,0.00021917,3]
[348952757,1736890235935,-500.0,0.00021917,3]
[348952758,1736890235946,-500.0,0.00021917,3]
[348952759,1736890235956,-253.76624793,0.00021917,3]
[348952760,1736890235965,-507.74207526,0.00021917,3]
[348952761,1736890235974,-306.2223477,0.00021917,3]
[348952762,1736890235984,-500.0,0.00021917,3]
[348952763,1736890235995,-500.0,0.00021917,3]
[348952764,1736890236004,-500.0,0.00021917,3]
[348952765,1736890236014,-1874.49,0.00021917,3]
[348952766,1736890236025,-151.0,0.00021917,2]
[348952767,1736890236036,-500.0,0.00021917,3]
[348952768,1736890236046,-507.77024554,0.00021917,3]
[348952769,1736890236055,-1000.0,0.00021917,3]
[348952770,1736890236065,-500.0,0.00021917,3]
[348952771,1736890236074,-500.0,0.00021917,3]
[348952772,1736890236085,-675.78,0.00021917,3]
[348952773,1736890236095,-441.5777367,0.00021917,3]
[348952774,1736890236104,-500.0,0.00021917,3]
[348952775,1736890236114,-500.0,0.00021917,3]
[348952776,1736890236123,-500.0,0.00021917,3]
[348952777,1736890236132,-1563.43,0.00021917,3]
[348952778,1736890236142,-500.0,0.00021917,3]
[348952779,1736890236151,-767.7,0.00021917,3]
[348952780,1736890236161,-153.13694079,0.00021917,3]
[348952781,1736890236170,-491.92957305,0.00021917,3]
[348952782,1736890236180,-500.0,0.00021917,3]
[348952783,1736890236191,-500.0,0.00021917,3]
[348952784,1736890236200,-500.0,0.00021917,3]
[348952785,1736890236210,-841.15,0.00021917,3]
[348952786,1736890236219,-1710.25,0.00021917,3]
[348952787,1736890236229,-243.13095438,0.00021917,3]
[348952788,1736890236239,-563.29,0.00021917,3]
[348952789,1736890236248,-500.0,0.00021917,3]
[348952790,1736890236257,-500.0,0.00021917,3]
[348952791,1736890236267,-500.0,0.00021917,3]
[348952792,1736890236276,-500.0,0.00021917,3]
[348952793,1736890236285,-500.0,0.00021917,3]
[348952794,1736890236295,-3498.58,0.00021917,3]